bitfinex-derivatives/quotes_SOLF0:USTF0_20250105
["timestamp","ask_amount","ask_price","bid_price","bid_amount"]
[1736085378218,2.3495,212.87,212.83,2.3498]
[1736085378423,2.3495,212.87,212.84,2.62]
[1736085380522,2.09,212.91,212.84,2.62]
[1736085380714,2.09,212.91,212.89,2.3491]
[1736085381719,2.09,212.91,212.89,4.9691]
[1736085383020,2.3487,212.93,212.89,4.9691]
[1736085383622,2.3488,212.92,212.89,2.62]
[1736085384122,2.08,212.91,212.89,2.62]
[1736085386730,4.429,212.91,212.89,2.62]
[1736085387424,2.08,212.91,212.89,2.62]
[1736085388632,4.429,212.91,212.89,2.62]
[1736085389331,2.08,212.91,212.84,2.62]
[1736085389530,2.08,212.91,212.83,2.62]
[1736085390231,2.08,212.91,212.82,2.6]
[1736085391434,2.3497,212.85,212.82,2.6]
[1736085391830,2.08,212.91,212.82,2.6]
[1736085392132,2.3497,212.85,212.82,2.6]
[1736085392333,2.3497,212.85,212.81,2.6]
[1736085392527,2.3497,212.85,212.8,2.3501]
[1736085392734,2.3497,212.85,212.81,2.6]
[1736085393533,2.3497,212.85,212.81,2.35]
[1736085393734,2.08,212.91,212.81,2.6]
[1736085393934,2.3497,212.84,212.81,2.6]
[1736085398939,2.08,212.91,212.81,2.6]
[1736085399148,2.08,212.91,212.83,2.3498]
[1736085399944,2.3495,212.87,212.83,2.3498]
[1736085400768,2.3495,212.86,212.81,2.6]
[1736085400949,2.08,212.91,212.81,2.6]
[1736085401543,2.3495,212.87,212.83,2.3498]
[1736085402249,2.3495,212.87,212.81,2.6]
[1736085402450,2.3493,212.88,212.81,2.6]
[1736085403441,2.3493,212.88,212.84,2.3497]
[1736085403640,2.3492,212.89,212.75,48.88717271]
[1736085403850,2.3492,212.89,212.76,2.6]
[1736085404052,2.3492,212.89,212.77,2.6]
[1736085405148,2.3492,212.89,212.8,2.3501]
[1736085405449,2.3492,212.89,212.77,2.6]
[1736085406154,2.08,212.91,212.83,2.3498]
[1736085406452,2.3493,212.88,212.84,2.6]
[1736085406843,2.08,212.91,212.84,2.6]
[1736085407052,2.3492,212.89,212.84,2.6]
[1736085407351,2.6,212.96,212.84,2.6]
[1736085407551,2.3494,212.88,212.84,2.6]
[1736085408452,2.07,212.87,212.84,2.6]
[1736085408752,4.4194,212.87,212.84,2.6]
[1736085409652,2.3495,212.86,212.83,2.6]
[1736085410152,2.07,212.87,212.76,1.3889]
[1736085410358,2.3498,212.83,212.77,2.6]
[1736085410551,2.3498,212.83,212.76,1.3889]
[1736085410749,2.07,212.87,212.77,2.6]
[1736085411549,2.35,212.82,212.77,2.6]
[1736085412354,2.35,212.82,212.77,4.9504]
[1736085414356,2.35,212.82,212.78,2.6]
[1736085415360,2.07,212.87,212.77,2.6]
[1736085415557,2.07,212.87,212.72,1.5061]
[1736085415758,1.4935,212.86,212.73,2.6]
[1736085415952,2.3503,212.79,212.74,2.3507]
[1736085416660,2.3503,212.79,212.75,2.6]
[1736085417362,2.3503,212.79,212.74,2.3507]
[1736085418264,2.3505,212.77,212.73,4.9509]
[1736085418560,2.3505,212.77,212.73,2.6]
[1736085420162,1.4935,212.86,212.73,2.6]
[1736085420563,4.0935,212.86,212.73,2.6]
[1736085420867,2.3499,212.83,212.75,2.3507]
[1736085421166,4.0935,212.86,212.75,2.3507]
[1736085421368,4.0935,212.86,212.68,2.9718]
[1736085421570,4.0935,212.86,212.74,2.3508]
[1736085421769,4.0935,212.86,212.74,4.9508]
[1736085421966,2.3503,212.79,212.74,4.9508]
[1736085422161,4.0935,212.86,212.74,4.9508]
[1736085422563,2.3499,212.83,212.77,2.3505]
[1736085422768,1.4935,212.86,212.77,2.3505]
[1736085423771,2.3503,212.8,212.76,2.3506]
[1736085424067,2.3503,212.8,212.74,2.6]
[1736085424569,1.4935,212.86,212.74,2.6]
[1736085425171,2.3505,212.78,212.74,2.6]
[1736085425567,1.4935,212.86,212.68,2.9718]
[1736085425873,2.3508,212.75,212.7,2.3513]
[1736085426368,2.3508,212.74,212.7,2.3513]
[1736085427071,2.3508,212.74,212.69,2.6]
[1736085427471,2.3507,212.76,212.69,2.6]
[1736085427771,2.3507,212.76,212.7,2.3512]
[1736085428172,2.3508,212.75,212.7,2.3512]
[1736085429970,2.3511,212.72,212.67,2.3516]
[1736085430164,2.3511,212.72,212.66,2.6]
[1736085430575,2.6,212.77,212.65,6.5036876]
[1736085430875,1.396,212.76,212.65,9.1036876]
[1736085431076,1.396,212.76,212.65,2.6]
[1736085432274,2.351,212.73,212.68,2.3515]
[1736085432573,2.351,212.73,212.66,2.6]
[1736085432765,2.3509,212.74,212.69,2.3513]
[1736085432973,1.396,212.76,212.66,2.6]
[1736085433276,2.3508,212.75,212.7,2.3512]
[1736085434172,1.396,212.76,212.66,2.6]
[1736085434876,1.396,212.76,212.72,2.351]
[1736085435376,3.7466,212.76,212.72,2.351]
[1736085437175,1.396,212.76,212.66,2.6]
[1736085437479,2.8715,212.81,212.72,2.351]
[1736085437676,2.8715,212.81,212.72,2.6]
[1736085437877,2.3503,212.8,212.75,2.3506]
[1736085438181,2.8715,212.81,212.72,2.6]
[1736085438575,2.3504,212.78,212.74,2.3508]
[1736085439174,2.8715,212.81,212.74,2.3508]
[1736085439377,2.3503,212.79,212.74,2.3508]
[1736085439677,2.06,212.78,212.74,2.3508]
[1736085440285,2.3505,212.77,212.73,2.6]
[1736085442584,2.3505,212.77,212.73,4.9509]
[1736085445679,2.3505,212.77,212.72,2.351]
[1736085445887,2.06,212.78,212.7,2.6]
[1736085445888,2.3508,212.75,212.7,2.6]
[1736085446281,2.3508,212.75,212.69,4.9513]
[1736085446481,2.3508,212.75,212.69,2.6]
[1736085446677,2.3508,212.75,212.6,10.92050055]
[1736085446884,2.3508,212.75,212.61,2.6]
[1736085447484,2.3508,212.75,212.7,2.3512]
[1736085449884,2.3508,212.75,212.69,2.6]
[1736085449885,2.3508,212.75,212.69,4.9513]
[1736085450087,2.06,212.78,212.69,4.9513]
[1736085450290,1.5273,212.77,212.6,4.4281]
[1736085450494,1.5273,212.77,212.61,2.62]
[1736085450790,2.3511,212.72,212.61,2.62]
[1736085451285,2.3511,212.72,212.6,4.4281]
[1736085451590,2.3511,212.72,212.62,2.62]
[1736085453587,2.3511,212.72,212.67,2.3515]
[1736085454394,2.3511,212.72,212.62,2.62]
[1736085454595,2.3511,212.72,212.68,2.3514]
[1736085455890,2.05,212.71,212.68,2.3514]
[1736085458493,2.05,212.71,212.67,2.3515]
[1736085460493,2.3514,212.7,212.65,4.9718]
[1736085461291,2.3514,212.69,212.65,4.9718]
[1736085465094,2.3514,212.69,212.66,2.3517]
[1736085465702,2.05,212.71,212.66,2.3517]
[1736085465904,2.05,212.71,212.65,2.62]
[1736085466099,2.05,212.71,212.65,4.9718]
[1736085467199,2.3515,212.68,212.65,2.62]
[1736085468004,2.3515,212.68,212.65,2.3518]
[1736085468405,18.78,212.71,212.47,162.31001394]
[1736085468594,4.4231,212.67,212.52,6.49240055]
[1736085469204,7.0431,212.67,212.52,9.11240055]
[1736085469596,7.0431,212.67,212.52,6.49240055]
[1736085469798,7.0431,212.67,212.52,2.62]
[1736085469993,2.3523,212.61,212.54,2.353]
[1736085470304,4.4231,212.67,212.44,6.49240055]
[1736085470502,4.4231,212.67,212.47,2.9418]
[1736085470709,2.3522,212.62,212.56,2.3528]
[1736085471599,2.3523,212.61,212.56,2.3528]
[1736085471799,2.62,212.66,212.47,2.9418]
[1736085471995,2.62,212.66,212.48,2.62]
[1736085472428,2.62,212.66,212.49,2.62]
[1736085472809,2.62,212.66,212.47,2.9418]
[1736085473104,2.62,212.66,212.5,2.62]
[1736085473407,2.62,212.65,212.5,2.62]
[1736085474100,2.3523,212.61,212.55,2.3529]
[1736085476102,2.3524,212.6,212.55,2.3529]
[1736085477906,2.3525,212.59,212.53,2.353]
[1736085479103,2.3526,212.58,212.53,2.353]
[1736085479500,2.62,212.65,212.52,2.3532]
[1736085480201,2.3523,212.62,212.52,2.3532]
[1736085480409,2.62,212.65,212.52,2.3532]
[1736085481409,2.3528,212.57,212.51,2.3534]
[1736085482313,2.7,212.6,212.48,2.7]
[1736085482909,2.3529,212.56,212.51,2.3534]
[1736085483110,3.5199,212.59,212.45,4.1564]
[1736085483914,2.3529,212.55,212.5,2.3534]
[1736085484317,3.5199,212.59,212.46,1.4522]
[1736085484710,6.2199,212.59,212.46,1.4522]
[1736085484914,2.3529,212.56,212.49,2.3536]
[1736085485119,6.2199,212.59,212.46,1.4522]
[1736085485713,6.2199,212.59,212.47,2.7]
[1736085487407,2.3528,212.56,212.51,2.3534]
[1736085487607,2.3528,212.56,212.47,2.7]
[1736085488519,2.3529,212.55,212.5,2.3534]
[1736085489605,2.3531,212.54,212.48,2.3536]
[1736085489806,2.3531,212.54,212.45,2.7]
[1736085490217,1.4984,212.58,212.45,2.7]
[1736085490614,1.4984,212.58,212.44,2.7]
[1736085490815,2.3534,212.51,212.44,2.7]
[1736085491230,1.4984,212.58,212.44,2.7]
[1736085491411,2.7,212.56,212.49,2.3535]
[1736085492117,2.3531,212.53,212.49,2.3535]
[1736085493018,1.4984,212.58,212.45,2.7]
[1736085493209,2.7,212.57,212.45,2.7]
[1736085493617,2.3534,212.52,212.47,2.3537]
[1736085493916,2.7,212.57,212.47,2.3537]
[1736085494215,2.7,212.57,212.41,1.4134]
[1736085494419,2.3534,212.51,212.46,2.3539]
[1736085495219,2.3536,212.5,212.45,2.354]
[1736085495821,2.7,212.57,212.45,2.354]
[1736085496518,2.7,212.56,212.42,2.7]
[1736085496724,2.3536,212.49,212.42,2.7]
[1736085497521,2.3536,212.49,212.44,2.3541]
[1736085497825,14.11,212.56,212.32,2.7]
[1736085498033,2.7,212.55,212.42,2.3543]
[1736085498325,2.3537,212.49,212.32,13.45970055]
[1736085498626,2.7,212.49,212.32,10.75970055]
[1736085498822,2.3539,212.47,212.33,2.7]
[1736085499326,2.3536,212.5,212.45,2.354]
[1736085499728,2.7,212.52,212.4,2.7]
[1736085500123,2.3536,212.49,212.44,2.3541]
[1736085500626,2.3538,212.48,212.43,2.3542]
[1736085500823,2.3538,212.48,212.39,2.7]
[1736085501629,2.3541,212.45,212.39,2.7]
[1736085501829,2.9346,212.5,212.39,2.7]
[1736085502227,5.6346,212.5,212.39,2.7]
[1736085502530,2.3539,212.47,212.42,2.3543]
[1736085502726,2.9346,212.5,212.32,4.2673]
[1736085503032,5.2882,212.5,212.44,2.3541]
[1736085503231,2.9346,212.5,212.44,2.3541]
[1736085503427,2.9346,212.5,212.39,2.7]
[1736085503628,2.7,212.57,212.39,2.7]
[1736085503822,2.9158,212.58,212.4,4.4132]
[1736085504225,2.03,212.57,212.4,4.4132]
[1736085504426,4.3827,212.57,212.4,4.4132]
[1736085505528,4.3827,212.57,212.52,2.3533]
[1736085507135,4.3827,212.57,212.49,2.7]
[1736085507726,2.03,212.57,212.49,2.7]
[1736085508126,2.03,212.57,212.5,2.8839]
[1736085508724,2.03,212.57,212.5,4.3933]
[1736085509232,2.03,212.57,212.52,2.3532]
[1736085509436,2.03,212.57,212.5,4.3933]
[1736085510035,2.03,212.57,212.56,2.3528]
[1736085510833,2.03,212.57,212.55,2.72]
[1736085512232,2.3528,212.56,212.48,2.72]
[1736085513538,2.03,212.57,212.48,2.72]
[1736085513935,2.03,212.57,212.49,2.3535]
[1736085514137,2.03,212.57,212.48,2.72]
[1736085514441,2.03,212.57,212.45,2.72]
[1736085514830,2.3532,212.53,212.45,2.72]
[1736085515738,2.3532,212.53,212.46,2.72]
[1736085516139,2.3532,212.53,212.47,2.3537]
[1736085516559,2.353,212.55,212.46,2.72]
[1736085516738,2.353,212.55,212.49,2.3535]
[1736085517238,2.3528,212.57,212.46,2.72]
[1736085517441,69.15320349,212.61,212.53,2.3531]
[1736085517642,2.3528,212.57,212.46,2.72]
[1736085518341,2.3528,212.57,212.51,2.3533]
[1736085518542,2.02,212.56,212.51,2.3533]
[1736085518733,4.3728,212.56,212.51,2.3533]
[1736085524335,4.3728,212.56,212.52,2.3533]
[1736085524542,2.02,212.56,212.49,2.72]
[1736085524743,2.3529,212.55,212.49,2.72]
[1736085525446,2.3529,212.55,212.51,2.3534]
[1736085526851,4.3728,212.56,212.51,2.3534]
[1736085527047,4.3728,212.56,212.49,2.72]
[1736085527254,2.02,212.56,212.49,2.72]
[1736085527945,2.02,212.56,212.55,2.3529]
[1736085528347,2.02,212.56,212.5,2.7965]
[1736085528648,2.02,212.56,212.53,2.3531]
[1736085530148,2.02,212.56,212.52,2.3532]
[1736085530449,2.02,212.56,212.49,2.72]
[1736085531044,2.353,212.55,212.5,2.3535]
[1736085531245,2.02,212.56,212.5,2.3535]
[1736085532547,2.353,212.54,212.5,2.3535]
[1736085535162,2.3529,212.55,212.5,2.3535]
[1736085535960,2.3529,212.55,212.51,2.3533]
[1736085541665,2.02,212.56,212.49,2.72]
[1736085542671,2.02,212.56,212.55,2.3529]
[1736085544269,2.02,212.56,212.55,5.0729]
[1736085554480,2.02,212.56,212.53,2.3531]
[1736085554680,2.72,212.66,212.54,2.72]
[1736085554883,2.3525,212.6,212.54,2.72]
[1736085555182,2.72,212.66,212.54,2.72]
[1736085555781,2.0,212.65,212.54,2.72]
[1736085556182,2.3522,212.62,212.54,2.72]
[1736085556381,2.0,212.65,212.53,2.3531]
[1736085556580,2.0,212.65,212.54,2.72]
[1736085556983,2.3526,212.58,212.54,2.72]
[1736085557479,2.3526,212.58,212.55,2.72]
[1736085560685,2.0,212.65,212.55,2.72]
[1736085561588,2.0,212.65,212.53,2.3531]
[1736085561788,2.0,212.65,212.53,5.0731]
[1736085563295,2.3522,212.62,212.53,5.0731]
[1736085563483,2.0,212.65,212.53,5.0731]
[1736085564494,2.3527,212.57,212.53,5.0731]
[1736085565599,2.3528,212.56,212.53,5.0731]
[1736085565994,2.3528,212.56,212.53,2.3531]
[1736085566194,2.3528,212.56,212.53,5.0731]
[1736085568498,2.3528,212.56,212.53,2.72]
[1736085573197,2.0,212.65,212.55,2.3528]
[1736085573198,2.3525,212.59,212.55,2.3528]
[1736085574203,2.0,212.65,212.53,2.72]
[1736085574507,2.3524,212.61,212.56,2.3528]
[1736085574906,2.0,212.65,212.53,2.72]
[1736085575103,2.3526,212.59,212.55,2.3529]
[1736085575504,2.0,212.65,212.53,2.72]
[1736085575708,2.0,212.65,212.54,2.353]
[1736085575905,4.4045,212.68,212.54,2.353]
[1736085576711,4.4045,212.68,212.55,2.3529]
[1736085576712,2.3526,212.59,212.55,2.3529]
[1736085577106,1.99,212.58,212.55,2.3529]
[1736085581813,1.99,212.58,212.56,2.3527]
[1736085582014,1.99,212.58,212.53,2.72]
[1736085582310,1.99,212.58,212.54,1.46]
[1736085582506,1.99,212.58,212.55,2.3529]
[1736085582707,1.99,212.58,212.54,1.46]
[1736085583211,1.99,212.58,212.56,2.3527]
[1736085583415,1.99,212.58,212.54,1.46]
[1736085585515,1.99,212.58,212.57,2.3527]
[1736085595320,1.99,212.58,212.57,5.0327]
[1736085596715,1.99,212.58,212.48,6.49240055]
[1736085596716,1.99,212.58,212.56,2.3527]
[1736085596921,1.99,212.58,212.55,2.68]
[1736085597722,1.99,212.58,212.56,2.3528]
[1736085598019,1.99,212.58,212.55,2.68]
[1736085598421,1.99,212.58,212.57,2.3527]
[1736085603820,1.99,212.58,212.57,5.0327]
[1736085622838,4.4045,212.68,212.57,5.0327]
[1736085622839,2.9414,212.68,212.57,2.68]
[1736085623039,2.9414,212.68,212.67,2.3516]
[1736085623340,1.4382,212.68,212.67,5.0316]
[1736085625943,1.4382,212.68,212.67,2.68]
[1736085627247,1.4382,212.68,212.67,5.0316]
[1736085628952,1.4382,212.68,212.58,2.3525]
[1736085629144,1.449,212.67,212.59,2.68]
[1736085629342,1.4713,212.66,212.59,2.68]
[1736085629747,1.4713,212.66,212.61,2.3523]
[1736085630951,3.8231,212.66,212.61,2.3523]
[1736085631650,2.3518,212.65,212.6,5.0124]
[1736085631852,2.3518,212.65,212.6,2.66]
[1736085633454,2.3518,212.65,212.61,2.3523]
[1736085633654,2.3519,212.64,212.59,2.66]
[1736085634049,2.3518,212.65,212.59,5.0124]
[1736085634255,2.3518,212.65,212.59,2.66]
[1736085635559,2.3518,212.65,212.5,1.4545]
[1736085635759,1.4713,212.66,212.51,2.66]
[1736085635760,2.3524,212.6,212.51,2.66]
[1736085636065,4.4228,212.59,212.52,2.66]
[1736085636359,4.4228,212.59,212.55,2.3529]
[1736085637762,6.7753,212.59,212.54,2.353]
[1736085637955,4.4228,212.59,212.5,2.66]
[1736085638555,2.3529,212.55,212.5,2.3534]
[1736085638754,2.66,212.57,212.41,25.96960222]
[1736085639164,2.66,212.57,212.42,2.66]
[1736085639862,2.3534,212.51,212.45,2.354]
[1736085640161,1.4257,212.5,212.43,2.66]
[1736085640956,1.4257,212.5,212.49,2.3536]
[1736085642264,2.66,212.57,212.52,2.3532]
[1736085642563,3.7784,212.58,212.48,2.66]
[1736085642764,3.7784,212.58,212.51,2.3533]
[1736085642961,3.7784,212.58,212.49,2.66]
[1736085643663,1.4257,212.58,212.49,2.66]
[1736085643862,2.8894,212.58,212.49,2.66]
[1736085644462,2.8894,212.58,212.55,2.3528]
[1736085644664,2.8894,212.58,212.54,2.66]
[1736085645562,2.8894,212.58,212.54,5.0129]
[1736085646656,2.8894,212.58,212.37,25.96960222]
[1736085646657,5.242,212.58,212.52,5.0132]
[1736085647168,2.8894,212.58,212.52,5.0132]
[1736085648667,2.3527,212.57,212.52,5.0132]
[1736085648867,2.3527,212.57,212.52,2.3532]
[1736085649071,2.8894,212.58,212.49,2.3535]
[1736085649673,2.8894,212.58,212.46,2.66]
[1736085652372,2.8894,212.58,212.53,2.353]
[1736085652574,2.8894,212.58,212.53,2.66]
[1736085653276,2.8894,212.58,212.53,5.0131]
[1736085653876,5.242,212.58,212.53,2.66]
[1736085654275,2.8894,212.58,212.5,2.66]
[1736085654675,2.3529,212.56,212.5,5.0135]
[1736085655880,2.8894,212.58,212.5,2.66]
[1736085656070,5.2421,212.58,212.5,2.66]
[1736085656776,5.2421,212.58,212.53,2.353]
[1736085657581,5.2421,212.58,212.54,2.353]
[1736085658784,2.8894,212.58,212.5,2.66]
[1736085659008,2.3522,212.62,212.57,2.3527]
[1736085659283,2.3522,212.62,212.55,2.66]
[1736085659479,2.352,212.63,212.57,2.3526]
[1736085659783,2.352,212.63,212.55,2.66]
[1736085660184,2.352,212.63,212.59,2.3525]
[1736085660386,3.7991,212.64,212.59,2.3525]
[1736085660681,3.7991,212.64,212.55,2.66]
[1736085660682,1.4472,212.64,212.55,2.66]
[1736085660881,2.8731,212.71,212.55,2.66]
[1736085661072,1.4472,212.7,212.55,2.66]
[1736085661484,2.3515,212.68,212.63,2.3519]
[1736085661687,1.4472,212.7,212.63,2.66]
[1736085662088,1.4472,212.7,212.66,2.3517]
[1736085662296,1.4472,212.7,212.63,2.66]
[1736085662694,3.7986,212.7,212.64,2.3519]
[1736085662988,1.4472,212.7,212.64,2.66]
[1736085664890,1.4472,212.7,212.62,2.3521]
[1736085665091,1.4472,212.7,212.63,2.66]
[1736085665511,2.3516,212.67,212.63,2.66]
[1736085666592,2.3518,212.66,212.56,2.3528]
[1736085666795,1.4472,212.7,212.57,2.66]
[1736085666993,1.4472,212.7,212.58,2.66]
[1736085667890,2.3521,212.63,212.58,2.66]
[1736085668996,2.3521,212.63,212.58,5.0125]
[1736085670290,2.3517,212.67,212.61,2.3522]
[1736085670489,1.4472,212.7,212.58,2.66]
[1736085671400,2.3517,212.66,212.61,2.3522]
[1736085671794,1.4472,212.7,212.58,2.66]
[1736085672595,2.3519,212.65,212.6,2.3523]
[1736085673600,2.3519,212.64,212.6,2.3523]
[1736085673999,1.4472,212.7,212.5,1.4272]
[1736085674296,2.3525,212.6,212.51,2.66]
[1736085674601,2.66,212.66,212.5,1.4272]
[1736085674806,2.3528,212.56,212.5,1.4272]
[1736085674999,16.79,212.66,212.5,2.66]
[1736085675195,16.79,212.66,212.49,1.4597]
[1736085675400,2.353,212.55,212.49,6.4733]
[1736085675602,2.66,212.61,212.49,4.1197]
[1736085675804,1.4454,212.6,212.49,4.1197]
[1736085677407,2.353,212.55,212.5,2.3535]
[1736085679304,1.4454,212.6,212.47,2.3537]
[1736085679506,1.4894,212.59,212.46,2.66]
[1736085679808,2.3536,212.49,212.45,2.66]
[1736085680504,2.3536,212.49,212.45,5.014]
[1736085681404,2.3536,212.49,212.45,2.66]
[1736085682307,2.3537,212.48,212.41,1.3904]
[1736085682505,2.3537,212.48,212.42,2.66]
[1736085683424,2.3537,212.48,212.42,5.0144]
[1736085684212,2.3537,212.48,212.42,2.66]
[1736085684413,2.3537,212.48,212.43,2.3542]
[1736085685417,2.3537,212.48,212.43,5.0142]
[1736085686112,2.3539,212.46,212.41,6.4049]
[1736085686614,2.66,212.51,212.4,2.66]
[1736085687110,1.5048,212.5,212.4,2.66]
[1736085687308,2.3542,212.44,212.39,2.3547]
[1736085687509,1.5048,212.5,212.38,4.1498]
[1736085687703,1.5048,212.5,212.38,5.0148]
[1736085687905,1.5048,212.5,212.37,2.66]
[1736085688106,1.5048,212.5,212.34,1.4728]
[1736085688107,1.5048,212.5,212.36,2.66]
[1736085689311,1.5048,212.5,212.31,2.66]
[1736085689514,1.5048,212.5,212.23,4.7129]
[1736085689515,1.5048,212.5,212.26,1.4289]
[1736085689712,2.3545,212.42,212.33,2.3553]
[1736085689916,2.3545,212.42,212.33,2.66]
[1736085690112,2.3545,212.42,212.26,1.4289]
[1736085690312,2.3545,212.42,212.36,2.3549]
[1736085691008,2.3545,212.42,212.37,2.3549]
[1736085691213,2.3543,212.43,212.37,2.3549]
[1736085691413,2.66,212.45,212.37,2.3549]
[1736085692208,1.5048,212.5,212.37,2.3549]
[1736085692413,2.3544,212.42,212.37,2.3549]
[1736085692818,1.5048,212.5,212.33,2.66]
[1736085693021,2.3541,212.45,212.39,2.3547]
[1736085693212,2.66,212.49,212.39,2.3547]
[1736085693616,2.3543,212.43,212.39,2.3547]
[1736085694514,1.5048,212.5,212.34,2.809]
[1736085694719,2.3539,212.47,212.42,2.3543]
[1736085695117,4.1648,212.5,212.42,2.3543]
[1736085695321,2.354,212.46,212.42,2.3543]
[1736085695521,2.354,212.46,212.39,2.66]
[1736085695723,1.5048,212.5,212.39,2.66]
[1736085696022,4.1648,212.5,212.39,2.66]
[1736085696222,4.1648,212.5,212.4,2.3545]
[1736085696621,4.1648,212.5,212.39,2.66]
[1736085697322,18.2948,212.5,212.39,2.66]
[1736085698224,2.3543,212.43,212.39,2.66]
[1736085699526,18.2948,212.5,212.39,2.66]
[1736085699727,2.3544,212.42,212.39,2.66]
[1736085701129,2.3544,212.42,212.38,2.3548]
[1736085701324,2.3544,212.42,212.37,2.3549]
[1736085701524,2.66,212.45,212.34,2.809]
[1736085701931,1.4686,212.44,212.34,2.809]
[1736085702929,2.3548,212.38,212.34,5.1642]
[1736085703129,1.4686,212.44,212.32,2.66]
[1736085703333,1.4024,212.43,212.32,2.66]
[1736085703730,1.4024,212.43,212.32,5.0155]
[1736085704132,1.4024,212.43,212.32,2.3555]
[1736085704331,2.3551,212.35,212.31,2.3556]
[1736085705727,14.13,212.39,212.25,2.3562]
[1736085706036,14.13,212.39,212.2,2.9657]
[1736085706226,14.13,212.39,212.21,2.66]
[1736085706427,14.13,212.39,212.22,2.66]
[1736085707339,14.13,212.37,212.22,2.66]
[1736085707533,2.3555,212.32,212.26,2.3561]
[1736085707935,14.13,212.37,212.22,2.66]
[1736085708133,2.3554,212.33,212.22,2.66]
[1736085708638,14.13,212.4,212.22,2.66]
[1736085708838,2.3551,212.36,212.22,2.66]
[1736085709431,2.3549,212.38,212.33,2.3553]
[1736085709741,1.4709,212.42,212.29,2.66]
[1736085709940,2.66,212.45,212.3,4.0413]
[1736085711047,2.3547,212.39,212.34,2.3552]
[1736085711349,2.66,212.43,212.3,4.0413]
[1736085712044,14.13,212.4,212.2,48.82417005]
[1736085712245,2.66,212.4,212.21,4.1392]
[1736085712548,14.13,212.48,212.21,4.1392]
[1736085712752,2.3547,212.4,212.35,2.3551]
[1736085713048,2.66,212.45,212.32,2.66]
[1736085713280,2.66,212.45,212.33,7.0237]
[1736085713444,2.3545,212.41,212.36,2.355]
[1736085713639,2.66,212.45,212.33,7.0237]
[1736085714347,2.3548,212.39,212.33,9.379]
[1736085714850,2.66,212.44,212.33,9.379]
[1736085715051,2.3549,212.38,212.33,9.379]
[1736085715649,2.3549,212.37,212.33,7.0237]
[1736085716847,2.3549,212.37,212.33,5.5963]
[1736085717052,2.66,212.44,212.33,5.5963]
[1736085717753,2.3552,212.35,212.33,5.5963]
[1736085718252,2.3552,212.35,212.33,2.66]
[1736085718652,14.13,212.43,212.22,2.8452]
[1736085718850,14.13,212.43,212.23,2.66]
[1736085719352,2.3549,212.37,212.27,2.356]
[1736085719553,14.13,212.43,212.28,2.66]
[1736085719953,2.3551,212.36,212.3,2.3557]
[1736085720151,2.3551,212.36,212.28,2.66]
[1736085720547,14.13,212.43,212.28,2.66]